bitfinex-derivatives/quotes_BTCF0:USTF0_20250822
["timestamp","ask_amount","ask_price","bid_price","bid_amount"]
[1755902918784,0.4409703,116830.0,116820.0,0.35955958]
[1755902918984,0.8017703,116830.0,116820.0,0.35955958]
[1755902919489,0.8017703,116830.0,116820.0,0.32792958]
[1755902919988,1.6058503,116830.0,116820.0,0.32792958]
[1755902920187,1.6058503,116830.0,116820.0,0.35966958]
[1755902920887,1.6058503,116830.0,116820.0,0.0787]
[1755902921188,1.6058503,116830.0,116820.0,0.35966958]
[1755902921492,1.0517703,116830.0,116820.0,0.30380958]
[1755902921885,1.0517703,116830.0,116820.0,0.02284]
[1755902922192,1.0517703,116830.0,116820.0,0.30380958]
[1755902922988,0.77080072,116830.0,116820.0,0.30380958]
[1755902923187,1.0517703,116830.0,116820.0,0.30380958]
[1755902924692,1.0517703,116830.0,116820.0,0.33554958]
[1755902925294,1.0517703,116830.0,116820.0,0.05458]
[1755902925486,1.0517703,116830.0,116820.0,0.30380958]
[1755902926693,1.0517703,116830.0,116820.0,0.33554958]
[1755902927498,1.0517703,116830.0,116820.0,0.05458]
[1755902927692,1.0517703,116830.0,116820.0,0.33554958]
[1755902929995,0.77080072,116830.0,116820.0,0.42116378]
[1755902930293,1.0517703,116830.0,116820.0,0.42116378]
[1755902930495,0.77080072,116830.0,116820.0,0.42116378]
[1755902932800,0.78080072,116830.0,116820.0,0.42116378]
[1755902934297,0.78080072,116830.0,116820.0,0.42917378]
[1755902937394,0.78080072,116830.0,116820.0,0.43418378]
[1755902938200,0.78080072,116830.0,116820.0,0.45060378]
[1755902939302,0.78080072,116830.0,116820.0,0.08402]
[1755902939496,0.78080072,116830.0,116820.0,0.36498958]
[1755902939697,0.78080072,116830.0,116820.0,0.38574958]
[1755902940202,0.78080072,116830.0,116820.0,0.36498958]
[1755902940397,0.78080072,116830.0,116820.0,0.08402]
[1755902940601,1.0617703,116830.0,116820.0,0.36498958]
[1755902941205,1.0617703,116830.0,116820.0,0.08402]
[1755902941403,1.0617703,116830.0,116820.0,0.36498958]
[1755902942602,0.78080072,116830.0,116820.0,0.36498958]
[1755902942900,1.0617703,116830.0,116820.0,0.36498958]
[1755902943595,0.7009703,116830.0,116820.0,0.36498958]
[1755902943996,0.42000072,116830.0,116820.0,0.36498958]
[1755902944300,0.78080072,116830.0,116820.0,0.36498958]
[1755902945405,0.53080072,116830.0,116820.0,0.36498958]
[1755902946508,0.53080072,116830.0,116820.0,0.35997958]
[1755902947304,0.8117703,116830.0,116820.0,0.36498958]
[1755902948099,0.4509703,116830.0,116820.0,0.36498958]
[1755902948807,0.8117703,116830.0,116820.0,0.36498958]
[1755902949511,0.17000072,116830.0,116820.0,0.36498958]
[1755902949698,0.8117703,116830.0,116820.0,0.36498958]
[1755902950099,0.53080072,116830.0,116820.0,0.36498958]
[1755902950299,0.8117703,116830.0,116820.0,0.36498958]
[1755902951908,0.53080072,116830.0,116820.0,0.36498958]
[1755902952211,0.4509703,116830.0,116820.0,0.36498958]
[1755902952396,0.17000072,116830.0,116820.0,0.36498958]
[1755902952910,0.17000072,116830.0,116820.0,0.47136368]
[1755902953510,0.17000072,116830.0,116820.0,0.1903941]
[1755902953812,0.17000072,116830.0,116820.0,0.47136368]
[1755902961614,0.17000072,116830.0,116820.0,0.38574958]
[1755902970419,0.53080072,116830.0,116820.0,0.38574958]
[1755902970614,0.17000072,116830.0,116820.0,0.38574958]
[1755902980921,0.17000072,116830.0,116820.0,0.10478]
[1755902981122,0.17000072,116830.0,116820.0,0.38574958]
[1755902984224,0.53080072,116830.0,116820.0,0.10478]
[1755902984426,0.8117703,116830.0,116820.0,0.38574958]
[1755902986336,0.53080072,116830.0,116820.0,0.38574958]
[1755902986539,0.8117703,116830.0,116820.0,0.38574958]
[1755902986930,0.49688072,116830.0,116820.0,0.47136358]
[1755902987240,0.13608072,116830.0,116820.0,0.47136358]
[1755902987430,0.17083072,116830.0,116820.0,0.47136358]
[1755902996545,0.4518003,116830.0,116820.0,0.10478]
[1755902996740,0.17083072,116830.0,116820.0,0.38574958]
[1755902998045,0.4518003,116830.0,116820.0,0.05228]
[1755902998246,0.8126003,116830.0,116820.0,0.0866]
[1755902998547,0.8126003,116830.0,116820.0,0.36756958]
[1755903000246,0.8126003,116830.0,116820.0,0.0866]
[1755903000552,0.8126003,116830.0,116820.0,0.36756958]
[1755903001746,0.8126003,116830.0,116820.0,0.0866]
[1755903001948,0.8126003,116830.0,116820.0,0.36756958]
[1755903002653,0.8126003,116830.0,116820.0,0.02284]
[1755903003051,0.8126003,116830.0,116820.0,0.05716]
[1755903003239,0.8126003,116830.0,116820.0,0.06517]
[1755903004053,0.8126003,116830.0,116820.0,0.07018]
[1755903004347,0.7405503,116830.0,116810.0,0.00501]
[1755903004553,0.76382958,116820.0,116810.0,0.36663958]
[1755903004754,0.78312416,116820.0,116810.0,0.36663958]
[1755903005652,0.50215458,116820.0,116810.0,0.36663958]
[1755903005855,0.78312416,116820.0,116810.0,0.36663958]
[1755903007050,0.78312416,116820.0,116810.0,0.30270958]
[1755903007246,0.78312416,116820.0,116810.0,0.33702958]
[1755903007454,0.78412416,116820.0,116810.0,0.36663958]
[1755903007958,0.78512416,116820.0,116810.0,0.36663958]
[1755903013757,0.78512416,116820.0,116810.0,0.30270958]
[1755903013957,0.78512416,116820.0,116810.0,0.34503958]
[1755903014154,0.78512416,116820.0,116810.0,0.36663958]
[1755903014357,0.78512416,116820.0,116810.0,0.02174]
[1755903015362,0.78512416,116820.0,116810.0,0.05606]
[1755903016256,1.58496416,116820.0,116810.0,0.05606]
[1755903018766,1.58496416,116820.0,116810.0,0.02174]
[1755903023558,1.58496416,116820.0,116800.0,0.32029958]
[1755903023760,0.76382958,116810.0,116800.0,0.36663958]
[1755903023960,0.80187689,116810.0,116800.0,0.08567]
[1755903024159,0.80187689,116810.0,116800.0,0.36663958]
[1755903024562,0.80187689,116810.0,116800.0,0.08567]
[1755903024764,0.80187689,116810.0,116800.0,0.36663958]
[1755903024964,0.81032049,116810.0,116800.0,0.36663958]
[1755903025469,0.81032049,116810.0,116800.0,0.08567]
[1755903025769,0.81032049,116810.0,116800.0,0.33231958]
[1755903025969,0.81032049,116810.0,116800.0,0.36663958]
[1755903026166,0.81032049,116810.0,116800.0,0.02975]
[1755903026364,0.81032049,116810.0,116800.0,0.02174]
[1755903026560,0.73677049,116810.0,116790.0,1.1371323]
[1755903026761,0.76382958,116800.0,116790.0,0.3839923]
[1755903027269,0.78403116,116800.0,116790.0,0.3839923]
[1755903027469,0.8513735,116800.0,116790.0,0.3839923]
[1755903027870,0.83117192,116800.0,116790.0,0.3839923]
[1755903028062,0.76382958,116800.0,116790.0,0.3839923]
[1755903028466,0.76482958,116800.0,116790.0,0.3839923]
[1755903028666,0.78502876,116800.0,116790.0,0.3839923]
[1755903029666,0.78602876,116800.0,116790.0,0.3839923]
[1755903030058,0.76582958,116800.0,116790.0,0.3839923]
[1755903030962,0.76582958,116800.0,116790.0,0.10302272]
[1755903031168,0.76582958,116800.0,116790.0,0.3839923]
[1755903032774,0.83456931,116800.0,116790.0,0.10302272]
[1755903032973,0.83456931,116800.0,116790.0,0.3839923]
[1755903033676,0.57380275,116800.0,116790.0,0.3839923]
[1755903034174,0.85477233,116800.0,116790.0,0.3839923]
[1755903034375,0.85477233,116800.0,116790.0,0.10302272]
[1755903034873,0.85477233,116800.0,116790.0,0.3839923]
[1755903035174,0.85477233,116800.0,116790.0,0.10302272]
[1755903035373,0.85477233,116800.0,116790.0,0.3839923]
[1755903038577,0.85477233,116800.0,116790.0,0.09801272]
[1755903038773,0.85477233,116800.0,116790.0,0.3200623]
[1755903039279,0.85477233,116800.0,116790.0,0.07207272]
[1755903039575,0.85477233,116800.0,116790.0,0.3610523]
[1755903039767,0.57380275,116800.0,116790.0,0.3610523]
[1755903040168,0.85477233,116800.0,116790.0,0.3660623]
[1755903040366,0.85477233,116800.0,116790.0,0.3826223]
[1755903041075,0.85477233,116800.0,116790.0,0.3776123]
[1755903041377,0.85477233,116800.0,116790.0,0.09664272]
[1755903041567,0.85477233,116800.0,116790.0,0.3776123]
[1755903043674,0.85477233,116800.0,116790.0,0.3446323]
[1755903043881,0.85477233,116800.0,116790.0,0.3776123]
[1755903044675,0.57380275,116800.0,116790.0,0.01735272]
[1755903044879,1.65353233,116800.0,116790.0,0.01735272]
[1755903051592,1.37256275,116800.0,116790.0,0.01735272]
[1755903051775,1.65353233,116800.0,116790.0,0.01735272]
[1755903052189,0.11813,116790.0,116780.0,0.28096958]
[1755903052487,0.518522,116790.0,116780.0,0.28096958]
[1755903052687,0.11813,116780.0,116770.0,0.89207297]
[1755903052889,0.47893,116780.0,116770.0,1.17304255]
[1755903053087,0.47893,116780.0,116770.0,1.19380255]
[1755903053488,0.47893,116780.0,116770.0,0.91283297]
[1755903053688,0.47893,116780.0,116770.0,1.19380255]
[1755903054797,0.47893,116780.0,116770.0,0.91283297]
[1755903055094,0.47893,116780.0,116770.0,1.19380255]
[1755903055496,0.47893,116780.0,116770.0,1.19480255]
[1755903055794,0.47893,116780.0,116770.0,1.19680255]
[1755903057697,0.47893,116780.0,116770.0,0.91583297]
[1755903057898,0.47893,116780.0,116770.0,1.19680255]
[1755903059201,0.44498,116780.0,116770.0,1.19680255]
[1755903059601,0.47867,116780.0,116770.0,1.19680255]
[1755903060291,0.49883661,116780.0,116770.0,1.18841958]
[1755903063006,0.49883661,116780.0,116770.0,0.90745]
[1755903063196,0.49883661,116780.0,116770.0,1.18841958]
[1755903064103,0.49883661,116780.0,116770.0,0.90745]
[1755903064401,0.49883661,116780.0,116770.0,1.18841958]
[1755903065204,0.43504661,116780.0,116770.0,1.18841958]
[1755903065701,0.49879661,116780.0,116770.0,1.18841958]
[1755903066601,0.49879661,116780.0,116770.0,0.90745]
[1755903066900,0.49879661,116780.0,116770.0,0.04998]
[1755903066901,0.77975465,116780.0,116770.0,0.04998]
[1755903067097,0.77975465,116780.0,116770.0,0.02541]
[1755903067498,0.77975465,116780.0,116770.0,0.08714]
[1755903067698,0.78831909,116780.0,116770.0,0.08714]
[1755903068496,0.49878507,116780.0,116770.0,0.08714]
[1755903068703,0.77975465,116780.0,116770.0,0.08714]
[1755903068903,0.78810098,116780.0,116770.0,0.08714]
[1755903069203,0.77975465,116780.0,116770.0,0.36810958]
[1755903071701,0.78820961,116780.0,116770.0,0.08714]
[1755903071905,0.78820961,116780.0,116770.0,0.36810958]
[1755903072314,0.78820961,116780.0,116770.0,0.08714]
[1755903073308,0.77975465,116780.0,116770.0,0.08714]
[1755903074810,0.7881465,116780.0,116770.0,0.08714]
[1755903075198,0.77975465,116780.0,116770.0,0.36810958]
[1755903076105,0.77975465,116780.0,116770.0,0.08714]
[1755903076610,0.77975465,116780.0,116770.0,0.36810958]
[1755903076811,0.77975465,116780.0,116770.0,0.36309958]
[1755903077007,0.50878507,116780.0,116770.0,0.36309958]
[1755903078209,0.50878507,116780.0,116770.0,0.08213]
[1755903078713,0.50878507,116780.0,116770.0,0.36309958]
[1755903078913,0.50878507,116780.0,116770.0,0.08213]
[1755903079207,0.78975465,116780.0,116770.0,0.08213]
[1755903079401,0.78975465,116780.0,116770.0,0.02541]
[1755903079602,0.79847581,116780.0,116770.0,0.02541]
[1755903080001,0.79847581,116780.0,116770.0,0.05856]
[1755903080410,0.79847581,116780.0,116770.0,0.02541]
[1755903080910,0.78975465,116780.0,116770.0,0.02541]
[1755903081704,0.78975465,116780.0,116770.0,0.33952958]
[1755903082612,0.78975465,116780.0,116770.0,0.05856]
[1755903082911,0.79834409,116780.0,116770.0,0.06657]
[1755903083713,0.79834409,116780.0,116770.0,0.05856]
[1755903084109,0.50878507,116780.0,116770.0,0.05856]
[1755903084711,0.50878507,116780.0,116770.0,0.02541]
[1755903085114,0.51878507,116780.0,116770.0,0.02541]
[1755903087116,0.52729496,116780.0,116770.0,0.02541]
[1755903088011,0.80826454,116780.0,116770.0,0.02541]
[1755903088219,0.52729496,116780.0,116770.0,0.02541]
[1755903088919,0.79826454,116780.0,116770.0,0.02541]
[1755903089118,0.78975465,116780.0,116770.0,0.02541]
[1755903089519,0.50878507,116780.0,116770.0,0.02541]
[1755903089719,0.78975465,116780.0,116770.0,0.02541]
[1755903091623,0.79834152,116780.0,116770.0,0.003]
[1755903092522,0.51737194,116780.0,116770.0,0.003]
[1755903092723,0.79834152,116780.0,116770.0,0.003]
[1755903095122,0.78975465,116780.0,116770.0,0.003]
[1755903095826,0.79845272,116780.0,116770.0,0.003]
[1755903097725,0.78975465,116780.0,116770.0,0.003]
[1755903100026,0.50878507,116780.0,116770.0,0.003]
[1755903100226,0.78975465,116780.0,116770.0,0.003]
[1755903101923,0.50878507,116780.0,116770.0,0.003]
[1755903102229,0.78975465,116780.0,116770.0,0.003]
[1755903103128,0.78975465,116780.0,116770.0,0.28396958]
[1755903104428,0.50878507,116780.0,116770.0,0.28396958]
[1755903105427,0.78975465,116780.0,116770.0,0.30560958]
[1755903108430,0.78975465,116780.0,116770.0,0.003]
[1755903111834,0.50878507,116780.0,116770.0,0.003]
[1755903112228,0.50878507,116780.0,116770.0,0.28396958]
[1755903112737,0.50878507,116780.0,116770.0,0.003]
[1755903112936,0.50878507,116780.0,116770.0,0.28396958]
[1755903115046,0.50878507,116780.0,116770.0,0.003]
[1755903115537,0.50878507,116780.0,116770.0,0.02464]
[1755903116433,0.50878507,116780.0,116770.0,0.003]
[1755903116628,0.78975465,116780.0,116770.0,0.003]
[1755903117143,0.50878507,116780.0,116770.0,0.003]
[1755903117641,0.78975465,116780.0,116770.0,0.003]
[1755903124341,0.78975465,116780.0,116770.0,0.28396958]
[1755903126540,0.78975465,116780.0,116770.0,0.003]
[1755903130246,0.78975465,116780.0,116770.0,0.28396958]
[1755903132349,0.50878507,116780.0,116770.0,0.28396958]
[1755903132647,0.78975465,116780.0,116770.0,0.28396958]
[1755903133450,0.78975465,116780.0,116770.0,0.003]
[1755903136356,0.50878507,116780.0,116770.0,0.003]
[1755903136559,0.78975465,116780.0,116770.0,0.003]
[1755903140163,0.50878507,116780.0,116770.0,0.30546958]
[1755903140464,0.14798507,116780.0,116770.0,0.99979958]
[1755903140660,0.12783,116780.0,116770.0,0.99979958]
[1755903141470,0.04276,116780.0,116770.0,0.99979958]
[1755903142063,0.06398,116780.0,116770.0,0.99979958]
[1755903143065,0.0988,116780.0,116770.0,0.99979958]
[1755903144967,0.11379,116780.0,116770.0,0.99979958]
[1755903145167,0.07897,116780.0,116770.0,0.99979958]
[1755903146468,0.06398,116780.0,116770.0,1.08544928]
[1755903146664,0.01,116780.0,116770.0,1.08544928]
[1755903149968,0.01,116780.0,116770.0,0.83544928]
[1755903150966,0.01,116780.0,116770.0,0.5544797]
[1755903151161,0.01,116780.0,116770.0,0.83544928]
[1755903161078,0.01,116780.0,116770.0,0.88130016]
[1755903173577,0.01,116780.0,116770.0,1.20812062]
[1755903174185,0.01,116780.0,116770.0,0.88130016]
[1755903174885,0.01,116780.0,116770.0,1.45812062]
[1755903180782,0.01,116780.0,116770.0,1.53524359]
[1755903182486,0.01,116780.0,116770.0,1.5525063]
[1755903183694,0.01,116780.0,116770.0,1.47538333]
[1755903185384,0.01,116780.0,116770.0,1.22538333]
[1755903185991,0.01,116780.0,116770.0,1.2254137]
[1755903186193,0.03394,116780.0,116770.0,1.2254137]
[1755903186492,0.06522,116780.0,116770.0,0.89859324]
[1755903188393,0.06522,116780.0,116770.0,1.2254137]
[1755903190201,0.06522,116780.0,116770.0,0.97571621]
[1755903192893,0.06522,116780.0,116770.0,0.64889575]
[1755903193193,0.12698,116780.0,116770.0,0.97571621]
[1755903196299,0.09488,116780.0,116770.0,1.30253667]
[1755903196499,0.0812,116780.0,116770.0,0.89859324]
[1755903208001,0.0812,116780.0,116770.0,0.97571621]
[1755903211905,0.0812,116780.0,116770.0,0.64889575]
[1755903212210,0.12722,116780.0,116770.0,0.97571621]
[1755903213412,0.12722,116780.0,116770.0,0.89859324]
[1755903216916,0.12722,116780.0,116770.0,0.57177278]
[1755903217110,0.12722,116780.0,116770.0,0.89859324]
[1755903221506,0.09547,116780.0,116770.0,0.89859324]
[1755903222016,0.09547,116780.0,116770.0,0.57177278]
[1755903222217,0.12722,116780.0,116770.0,0.57177278]
[1755903222408,0.12722,116780.0,116770.0,0.89859324]
[1755903222715,0.12722,116780.0,116770.0,0.97571621]
[1755903223618,0.12722,116780.0,116770.0,0.64917251]
[1755903223821,0.12722,116780.0,116770.0,0.97599297]
[1755903226222,0.12722,116780.0,116770.0,0.89887]
[1755903227021,0.12722,116780.0,116770.0,0.89849271]
[1755903231422,0.09547,116780.0,116770.0,0.89849271]
[1755903232525,0.09547,116780.0,116770.0,0.57167225]
[1755903232824,0.09547,116780.0,116770.0,0.89849271]
[1755903234223,0.09547,116780.0,116770.0,0.97561568]
[1755903234617,0.09547,116780.0,116770.0,0.64879522]
[1755903234812,0.09547,116780.0,116770.0,0.97561568]
[1755903235024,0.0812,116780.0,116770.0,0.97561568]
[1755903235228,0.11295,116780.0,116770.0,0.64879522]
[1755903235422,0.0812,116780.0,116770.0,0.97561568]
[1755903241926,0.0812,116780.0,116770.0,0.89849271]
[1755903242722,0.06522,116780.0,116770.0,0.89849271]
[1755903245830,0.06522,116780.0,116770.0,0.89849684]
[1755903249334,0.06522,116780.0,116770.0,0.89835019]
[1755903251834,0.09732,116780.0,116770.0,0.81270049]
[1755903252030,0.14710862,116780.0,116770.0,0.81270049]
[1755903252436,0.14710862,116780.0,116770.0,0.45190049]
[1755903253743,0.14710862,116780.0,116770.0,0.12508003]
[1755903253943,0.14710862,116780.0,116770.0,0.45190049]
[1755903264057,0.14710862,116780.0,116770.0,0.10803]
[1755903264263,0.14710862,116780.0,116770.0,0.43485046]
[1755903265152,0.14710862,116780.0,116770.0,0.10803]
[1755903265356,0.14710862,116780.0,116770.0,0.43485046]
[1755903267459,0.14710862,116780.0,116770.0,0.10803]
[1755903267761,0.14710862,116780.0,116770.0,0.43485046]
[1755903273464,0.12792,116780.0,116770.0,0.43485046]
[1755903274260,0.12792,116780.0,116770.0,0.10803]
[1755903274460,0.12792,116780.0,116770.0,0.43485046]
[1755903274664,0.12792,116780.0,116770.0,0.79565046]
[1755903275567,0.12792,116780.0,116770.0,0.46883]
[1755903275766,0.12792,116780.0,116770.0,0.79565046]
[1755903276668,0.12792,116780.0,116770.0,0.43485046]
[1755903284875,0.12792,116780.0,116770.0,0.52050126]
[1755903286772,0.12792,116780.0,116770.0,0.43485046]
[1755903296685,0.12792,116780.0,116770.0,0.10803]
[1755903296886,0.12792,116780.0,116770.0,0.43485046]
[1755903305392,0.12792,116780.0,116770.0,0.10803]
[1755903305592,0.12792,116780.0,116770.0,0.43485046]
[1755903307481,0.12792,116780.0,116770.0,0.52050136]
[1755903308791,0.12792,116780.0,116770.0,0.43485046]
[1755903310497,0.12792,116780.0,116770.0,0.10803]
[1755903310697,0.12792,116780.0,116770.0,0.45228685]
[1755903314196,0.12792,116780.0,116770.0,0.45228081]
[1755903318685,0.12792,116780.0,116770.0,0.12546035]
[1755903318890,0.12792,116780.0,116770.0,0.45228081]
[1755903322700,0.12792,116780.0,116770.0,0.12546035]
[1755903322900,0.12792,116780.0,116770.0,0.45228081]
[1755903327204,0.12792,116780.0,116770.0,0.53793131]
[1755903327802,0.12792,116780.0,116770.0,0.21111085]
[1755903328002,0.12792,116780.0,116770.0,0.53793131]
[1755903328203,0.12792,116780.0,116770.0,0.12546035]
[1755903328501,0.12792,116780.0,116770.0,0.45228081]
[1755903330995,0.12792,116780.0,116770.0,0.52940378]
[1755903337112,0.12792,116780.0,116770.0,0.45228081]
[1755903348523,0.12792,116780.0,116770.0,0.12546035]
[1755903348721,0.12792,116780.0,116770.0,0.45228081]
[1755903353623,0.12792,116780.0,116770.0,0.12546035]
[1755903353830,0.12792,116780.0,116770.0,0.45228081]
[1755903354023,0.12792,116780.0,116770.0,0.12546035]
[1755903354223,0.12792,116780.0,116770.0,0.45228081]
[1755903359633,0.12792,116780.0,116770.0,0.12546035]
[1755903359931,0.12792,116780.0,116770.0,0.45228081]
[1755903363737,0.12792,116780.0,116770.0,0.12546035]
[1755903364038,0.12792,116780.0,116770.0,0.45228081]
[1755903370432,0.12792,116780.0,116770.0,0.12546035]
[1755903370638,0.12792,116780.0,116770.0,0.45228081]
[1755903377139,0.12792,116780.0,116770.0,0.51397816]
[1755903379848,0.12792,116780.0,116770.0,0.45228081]
[1755903380047,0.12792,116780.0,116770.0,0.52940378]
[1755903382248,0.12792,116780.0,116770.0,0.20258332]
[1755903382450,0.12792,116780.0,116770.0,0.52940378]
[1755903386441,0.12792,116780.0,116770.0,0.20258332]
[1755903386646,0.12792,116780.0,116770.0,0.52940378]
[1755903389653,0.12792,116780.0,116770.0,0.20258332]
[1755903389951,0.12792,116780.0,116770.0,0.45228081]
[1755903392355,0.12792,116780.0,116770.0,0.0245]
[1755903392356,0.73872,116780.0,116770.0,0.0245]
[1755903392653,1.08573939,116780.0,116770.0,0.32982046]
[1755903393354,1.08573939,116780.0,116770.0,0.003]
[1755903393553,1.08573939,116780.0,116770.0,0.32982046]
[1755903394552,1.08573939,116780.0,116770.0,0.003]
[1755903394857,1.09438586,116780.0,116770.0,0.32982046]
[1755903395050,1.09438586,116780.0,116770.0,0.003]
[1755903395248,1.08573939,116780.0,116770.0,0.003]
[1755903395449,0.75891893,116780.0,116770.0,0.003]
[1755903395650,1.08573939,116780.0,116770.0,0.003]
[1755903396649,1.09429093,116780.0,116770.0,0.003]
[1755903397054,0.76747047,116780.0,116770.0,0.003]
[1755903397255,1.09429093,116780.0,116770.0,0.003]
[1755903403966,1.88965093,116780.0,116770.0,0.003]
[1755903404469,1.09429093,116780.0,116770.0,0.003]
[1755903406471,1.074092,116780.0,116770.0,0.003]
[1755903409173,0.74727154,116780.0,116770.0,0.003]
[1755903409380,1.09448815,116780.0,116750.0,1.17664416]
[1755903409581,0.44292046,116770.0,116760.0,0.32682046]
[1755903409867,0.8229613,116770.0,116760.0,0.32682046]
[1755903410073,0.8229613,116770.0,116760.0,0.34843046]
[1755903410275,0.8229613,116770.0,116760.0,0.38055046]
[1755903410668,0.49614084,116770.0,116760.0,0.38055046]
[1755903410872,0.8229613,116770.0,116760.0,0.38055046]
[1755903411462,0.49614084,116770.0,116760.0,0.02161]
[1755903411673,0.8229613,116770.0,116760.0,0.34843046]
[1755903411974,0.8229613,116770.0,116760.0,0.02161]
[1755903412176,0.8229613,116770.0,116760.0,0.34843046]
[1755903412373,0.8229613,116770.0,116760.0,0.02161]
[1755903412575,0.8229613,116770.0,116760.0,0.34843046]
[1755903412875,0.8229613,116770.0,116760.0,0.38155046]
[1755903413179,0.8229613,116770.0,116760.0,0.38355046]
[1755903413373,0.8229613,116770.0,116760.0,0.05673]
[1755903413674,0.8229613,116770.0,116760.0,0.38355046]
[1755903415177,0.8229613,116770.0,116760.0,0.02461]
[1755903415366,0.8229613,116770.0,116760.0,0.003]
[1755903415566,0.8229613,116770.0,116760.0,0.32982046]
[1755903415766,0.8229613,116770.0,116760.0,0.35143046]
[1755903415973,0.49614084,116770.0,116760.0,0.38355046]
[1755903416271,0.8229613,116770.0,116760.0,0.05673]
[1755903416571,0.8229613,116770.0,116760.0,0.38355046]
[1755903416775,0.8229613,116770.0,116760.0,0.02461]
[1755903416968,0.8229613,116770.0,116760.0,0.35143046]
[1755903417375,0.74614084,116770.0,116760.0,0.003]
[1755903417673,1.0729613,116770.0,116760.0,0.003]
[1755903418577,1.0729613,116770.0,116740.0,0.87837]
[1755903418578,0.04737,116750.0,116740.0,0.87837]
[1755903418774,0.47768,116750.0,116740.0,1.20519046]
[1755903419277,0.49656656,116750.0,116740.0,0.87837]
[1755903419577,0.49656656,116750.0,116740.0,1.20519046]
[1755903419781,0.49656656,116750.0,116740.0,1.22995046]
[1755903420266,0.49656656,116750.0,116740.0,0.43475046]
[1755903420467,0.49656656,116750.0,116740.0,1.22719046]
[1755903420671,0.49756656,116750.0,116740.0,1.22719046]
[1755903421074,0.49756656,116750.0,116740.0,0.90037]
[1755903421580,0.49756656,116750.0,116740.0,1.22719046]
[1755903421781,0.49756656,116750.0,116740.0,0.37927046]
[1755903422081,0.82438702,116750.0,116740.0,1.20743046]
[1755903422276,0.82738702,116750.0,116740.0,1.20743046]
[1755903422578,0.46840656,116750.0,116740.0,1.20743046]
[1755903422785,0.13876656,116750.0,116740.0,1.22819046]
[1755903422973,0.14076656,116750.0,116740.0,1.22819046]
[1755903423375,0.14076656,116750.0,116740.0,0.91005754]
[1755903423775,0.14076656,116750.0,116740.0,1.236878]
[1755903424078,0.50156656,116750.0,116740.0,0.91005754]
[1755903424382,0.14076656,116750.0,116740.0,1.236878]
[1755903424982,0.50156656,116750.0,116740.0,0.91005754]
[1755903425205,0.50156656,116750.0,116740.0,1.236878]
[1755903426284,0.50156656,116750.0,116740.0,0.91005754]
[1755903426485,0.50156656,116750.0,116740.0,1.236878]
[1755903426880,0.14076656,116750.0,116740.0,1.236878]
[1755903427380,0.50156656,116750.0,116740.0,1.236878]
[1755903428183,0.50156656,116750.0,116740.0,0.90137]
[1755903428383,0.50156656,116750.0,116740.0,1.22819046]
[1755903429378,0.50156656,116750.0,116740.0,0.90137]
[1755903429584,0.50156656,116750.0,116740.0,1.22819046]
[1755903429784,0.14076656,116750.0,116740.0,1.22819046]
[1755903430181,0.015,116750.0,116740.0,2.25148412]
[1755903430686,0.015,116750.0,116740.0,2.25985701]
[1755903430991,0.015,116750.0,116740.0,1.93303655]
[1755903431896,0.01,116780.0,116770.0,0.1851812]
[1755903432085,0.01886687,116790.0,116780.0,0.1751739]
[1755903432392,0.01886687,116790.0,116780.0,1.10397092]
[1755903432585,0.01886687,116790.0,116780.0,1.5011658]
[1755903432886,0.2025137,116800.0,116790.0,0.08953]
[1755903433086,0.2025137,116800.0,116790.0,1.56286667]
[1755903433990,0.2025137,116800.0,116790.0,0.90922575]
[1755903434288,0.2055137,116800.0,116790.0,1.14161014]
[1755903435478,0.2055137,116800.0,116790.0,1.14261014]
[1755903435679,0.2035137,116800.0,116790.0,1.14261014]
[1755903436188,0.2035137,116800.0,116790.0,1.15105579]
[1755903438288,0.2035137,116800.0,116790.0,0.9186714]
[1755903438478,0.2035137,116800.0,116790.0,1.15105579]
[1755903439288,0.2035137,116800.0,116790.0,0.9186714]
[1755903439790,0.2035137,116800.0,116790.0,1.15105579]
[1755903440591,0.2035137,116800.0,116790.0,1.14261014]
[1755903440894,0.5643137,116800.0,116790.0,1.14261014]
[1755903441690,0.5643137,116800.0,116790.0,1.15130223]
[1755903444297,0.5643137,116800.0,116790.0,0.91022575]
[1755903444498,0.5643137,116800.0,116790.0,1.14261014]
[1755903447402,0.5643137,116800.0,116790.0,1.15117054]
[1755903448190,0.5659037,116800.0,116790.0,1.14261014]
[1755903451103,0.5659037,116800.0,116790.0,1.22824734]
[1755903452401,0.5659037,116800.0,116790.0,1.14261014]
[1755903454604,0.08572,116800.0,116790.0,1.35666285]
[1755903454799,0.07149,116800.0,116790.0,1.35666285]
[1755903455009,0.07149,116800.0,116790.0,1.58904724]
[1755903455197,0.05567,116800.0,116790.0,1.58904724]
[1755903455698,0.05567,116800.0,116790.0,1.14261014]
[1755903458308,0.08942,116800.0,116790.0,1.14261014]
[1755903459606,0.05567,116800.0,116790.0,1.14261014]
[1755903460308,0.05567,116800.0,116790.0,1.22824724]
[1755903461309,0.07529796,116800.0,116790.0,1.22824724]
[1755903466410,0.07529796,116800.0,116790.0,0.99586285]
[1755903466610,0.07529796,116800.0,116790.0,1.22824724]
[1755903468011,0.02062796,116800.0,116790.0,1.82143163]
[1755903468307,0.02062796,116800.0,116790.0,2.07143163]
[1755903468509,0.02062796,116800.0,116790.0,1.83904724]
[1755903469010,0.01,116810.0,116800.0,0.1088398]
[1755903469207,0.01,116810.0,116800.0,0.95686858]
[1755903469712,0.01,116810.0,116800.0,0.72448419]
[1755903470012,0.03398,116810.0,116800.0,0.72448419]
[1755903470513,0.03498,116810.0,116800.0,0.72448419]
[1755903471313,0.03598,116810.0,116800.0,0.72448419]
[1755903473408,0.03498,116810.0,116800.0,0.72448419]
[1755903473604,0.05682,116810.0,116800.0,0.72448419]
[1755903474209,0.05782,116810.0,116800.0,0.72448419]
[1755903474910,0.06705,116810.0,116800.0,0.72448419]
[1755903478409,0.06705,116810.0,116800.0,0.75347134]
[1755903478611,0.04521,116810.0,116800.0,0.75347134]
[1755903478910,0.06692,116810.0,116800.0,0.75347134]
[1755903479416,0.06692,116810.0,116800.0,0.4920998]
[1755903479607,0.06692,116810.0,116800.0,0.75347134]
[1755903481708,0.10168,116810.0,116800.0,0.75347134]
[1755903481915,0.10168,116810.0,116800.0,0.4920998]
[1755903482116,0.06692,116810.0,116800.0,0.75347134]
[1755903484013,0.10168,116810.0,116800.0,0.75347134]
[1755903488926,0.06692,116810.0,116800.0,0.75347134]
[1755903491219,0.10168,116810.0,116800.0,0.75347134]
[1755903491828,0.10068,116810.0,116800.0,0.75347134]
[1755903492129,0.09968,116810.0,116800.0,0.81502232]